bitfinex-derivatives/quotes_BNBF0:USTF0_20250908
["timestamp","ask_amount","ask_price","bid_price","bid_amount"]
[1757321181221,0.19892989,876.19,874.85,0.75249413]
[1757321181521,0.19892989,876.19,874.86,0.75249413]
[1757321181722,0.19892989,876.19,874.87,0.75249413]
[1757321182022,0.19892989,876.19,874.88,0.75249413]
[1757321182318,0.19892989,876.19,874.89,0.75249413]
[1757321182624,0.19892989,876.19,874.9,0.75249413]
[1757321182918,0.19892989,876.19,874.91,0.75249413]
[1757321183122,0.19892989,876.19,874.92,0.75249413]
[1757321183319,0.19892989,876.19,874.93,0.75249413]
[1757321183623,0.19892989,876.19,874.94,0.75249413]
[1757321183922,0.19892989,876.19,874.95,0.75249413]
[1757321184219,0.19892989,876.19,874.96,0.75249413]
[1757321184524,0.19892989,876.19,874.97,0.75249413]
[1757321184823,0.19892989,876.19,874.98,0.75249413]
[1757321185018,0.19892989,876.19,874.99,0.75249413]
[1757321185318,0.19892989,876.19,875.0,0.75249413]
[1757321185622,0.19892989,876.19,875.01,0.75249413]
[1757321185818,0.19892989,876.19,875.02,0.75249413]
[1757321186018,0.19892989,876.19,875.03,0.75249413]
[1757321186217,0.19892989,876.19,875.04,0.75249413]
[1757321186422,0.19892989,876.19,874.82,2.5461728]
[1757321186622,0.19892989,876.19,874.83,0.75165014]
[1757321186820,0.19892989,876.19,874.84,0.75165014]
[1757321187024,0.19892989,876.19,875.8,1.5368064]
[1757321187520,0.19892989,876.19,875.78,1.5368064]
[1757321187924,0.19892989,876.19,875.8,1.5368064]
[1757321188523,0.19892989,876.19,875.81,1.5368064]
[1757321188720,0.19892989,876.19,875.8,1.5368064]
[1757321189020,0.19892989,876.19,875.82,1.5368064]
[1757321189426,0.19892989,876.19,875.81,1.5368064]
[1757321189921,0.19892989,876.19,875.75,1.5368064]
[1757321190228,0.19892989,876.19,875.74,1.5368064]
[1757321191229,0.19892989,876.19,875.73,1.5368064]
[1757321191925,0.19892989,876.19,875.69,1.5368064]
[1757321192127,0.19892989,876.19,875.68,1.5368064]
[1757321192729,0.19892989,876.19,875.36,1.5368064]
[1757321193223,0.19892989,876.19,875.26,1.5368064]
[1757321193632,0.19892989,876.19,875.29,1.5368064]
[1757321193827,0.19892989,876.19,875.23,1.5368064]
[1757321194025,0.19892989,876.19,875.18,1.5368064]
[1757321194432,0.19892989,876.19,875.21,1.5368064]
[1757321195327,0.19892989,876.19,875.22,1.5368064]
[1757321196229,0.19892989,876.19,875.21,1.5368064]
[1757321196432,0.19892989,876.19,875.22,1.5368064]
[1757321200437,0.19892989,876.19,875.23,1.5368064]
[1757321200839,0.401,876.46,875.23,1.5368064]
[1757321201138,0.1989208,875.96,875.23,1.5368064]
[1757321201442,0.401,876.46,875.25,1.5368064]
[1757321201841,0.1989208,875.78,875.25,1.5368064]
[1757321202152,0.401,876.46,875.24,1.5368064]
[1757321202348,0.19891966,875.72,875.27,1.5368064]
[1757321202549,0.36,876.21,875.29,1.5368064]
[1757321202748,0.36,876.21,875.56,1.5368064]
[1757321202948,0.19892535,875.66,875.54,1.5368064]
[1757321203249,0.36,876.21,875.54,1.5368064]
[1757321203443,0.19893558,875.64,875.53,1.5368064]
[1757321203650,0.19893558,875.64,875.5,1.5368064]
[1757321203948,0.19894468,875.61,875.44,1.5368064]
[1757321204349,0.19894468,875.61,875.36,1.5368064]
[1757321204647,0.19894468,875.61,875.28,1.5368064]
[1757321204944,0.19894468,875.61,875.3,1.5368064]
[1757321205347,0.19894468,875.61,875.31,1.5368064]
[1757321206545,0.19894468,875.61,875.28,1.5368064]
[1757321206848,0.19894468,875.61,875.37,1.5368064]
[1757321208048,0.19894468,875.61,875.3,1.5368064]
[1757321208251,0.19894468,875.61,875.22,1.5368064]
[1757321208550,0.19894468,875.61,875.21,1.5368064]
[1757321208748,0.19894468,875.61,875.13,1.5368064]
[1757321208946,0.19894468,875.61,875.09,1.5368064]
[1757321209150,0.19894468,875.61,875.04,1.5368064]
[1757321210447,0.19894468,875.61,875.03,1.5368064]
[1757321211151,0.19894468,875.61,873.86,2.5461728]
[1757321211152,0.19894468,875.61,875.04,1.5368064]
[1757321211446,0.19894468,875.61,875.03,1.5368064]
[1757321211749,0.19894468,875.61,873.86,2.5461728]
[1757321211750,0.19894468,875.61,875.04,1.5368064]
[1757321212352,0.19894468,875.61,874.99,1.5368064]
[1757321212852,0.19894468,875.61,875.02,1.5368064]
[1757321213551,0.19894468,875.61,875.01,1.5368064]
[1757321214149,0.19894468,875.61,875.02,1.5368064]
[1757321215552,0.19894468,875.61,875.01,1.5368064]
[1757321216451,0.19894468,875.61,875.03,1.5368064]
[1757321216652,0.19894468,875.61,875.06,1.5368064]
[1757321217151,0.19894468,875.61,875.13,1.5368064]
[1757321217356,0.19894468,875.61,875.12,1.5368064]
[1757321217950,0.19894468,875.61,875.13,1.5368064]
[1757321218154,0.19894468,875.61,875.19,1.5368064]
[1757321218354,0.19894468,875.61,875.21,1.5368064]
[1757321219354,0.19894468,875.61,875.2,1.5368064]
[1757321219853,0.19894468,875.61,875.29,1.5368064]
[1757321220457,0.19894468,875.61,875.28,1.5368064]
[1757321220852,0.19894468,875.61,875.4,1.5368064]
[1757321221158,0.19894468,875.61,875.41,1.5368064]
[1757321221359,0.19894468,875.61,875.4,1.5368064]
[1757321221858,0.19894468,875.61,875.43,1.5368064]
[1757321222760,0.19894468,875.61,875.4,1.5368064]
[1757321223755,0.19894468,875.61,875.42,1.5368064]
[1757321226562,0.19894468,875.61,874.63,2.5461728]
[1757321226563,0.19894468,875.61,875.23,1.5368064]
[1757321226762,0.19894468,875.61,875.26,1.5368064]
[1757321227963,0.19894468,875.61,875.27,1.5368064]
[1757321229162,0.19894468,875.61,875.28,1.5368064]
[1757321229462,0.19894468,875.61,875.27,1.5368064]
[1757321230360,0.19894468,875.61,875.22,1.5368064]
[1757321231460,0.19894468,875.61,875.31,1.5368064]
[1757321231864,0.19894468,875.61,875.27,1.5368064]
[1757321232065,0.19894468,875.61,875.2,1.5368064]
[1757321232861,0.19894468,875.61,875.19,1.5368064]
[1757321233465,0.19894468,875.61,875.17,1.5368064]
[1757321233663,0.19894468,875.61,875.09,1.5368064]
[1757321233866,0.19894468,875.61,874.95,1.5368064]
[1757321234067,0.19894468,875.61,874.9,1.5368064]
[1757321234267,0.19894468,875.61,874.89,1.5368064]
[1757321234469,0.19894468,875.61,874.88,1.5368064]
[1757321234763,0.19894468,875.61,875.27,1.0241067]
[1757321235368,0.19894468,875.61,875.28,1.0241067]
[1757321238766,0.19894468,875.61,875.26,1.0241067]
[1757321238971,0.19894468,875.61,875.4,1.0241067]
[1757321239770,0.19894468,875.61,875.39,1.0241067]
[1757321239970,0.19894468,875.61,875.34,1.0241067]
[1757321240265,0.19894468,875.61,875.3,1.0241067]
[1757321240668,0.19894468,875.61,875.34,1.0241067]
[1757321242672,0.19894468,875.61,875.12,1.0241067]
[1757321243375,0.19894468,875.61,875.13,1.0241067]
[1757321245370,0.19894468,875.61,875.14,1.0241067]
[1757321245976,0.19894468,875.61,875.13,1.0241067]
[1757321246576,0.19894468,875.61,875.14,1.0241067]
[1757321247372,0.19894468,875.61,875.16,1.0241067]
[1757321248271,0.19894468,875.61,875.14,1.0241067]
[1757321248773,0.19894468,875.61,875.1,1.0241067]
[1757321248975,0.19894468,875.61,875.07,1.0241067]
[1757321249171,0.19894468,875.61,875.04,1.0241067]
[1757321249376,0.19894468,875.61,875.02,1.0241067]
[1757321250178,0.348,875.58,874.9,1.0241067]
[1757321250374,0.375,875.58,874.88,1.0241067]
[1757321250577,0.375,875.58,874.86,1.0241067]
[1757321251175,0.375,875.58,874.85,1.0241067]
[1757321251380,0.19894468,875.61,874.88,1.0241067]
[1757321251879,0.19894468,875.61,874.91,1.0241067]
[1757321252178,0.19894468,875.61,873.55,2.5461728]
[1757321252179,0.19894468,875.61,874.9,1.0241067]
[1757321252478,0.19894468,875.61,874.91,1.0241067]
[1757321252675,0.19894468,875.61,875.14,1.0241067]
[1757321252874,0.375,875.48,875.13,1.0241067]
[1757321253075,0.375,875.48,875.14,1.0241067]
[1757321253280,0.375,875.48,875.12,1.0241067]
[1757321253580,0.375,875.48,875.11,1.0241067]
[1757321253777,0.375,875.48,875.14,1.0241067]
[1757321253976,0.375,875.48,875.15,1.0241067]
[1757321254181,0.375,875.48,875.07,1.0241067]
[1757321254380,0.402,875.48,874.98,1.0241067]
[1757321254581,0.375,875.48,874.97,1.0241067]
[1757321254880,0.375,875.48,874.71,1.5368064]
[1757321254881,0.375,875.48,874.98,1.0241067]
[1757321255276,0.375,875.48,874.95,1.0241067]
[1757321255480,0.375,875.48,874.96,1.0241067]
[1757321255676,0.19894468,875.61,874.98,1.0241067]
[1757321256281,0.19894468,875.61,874.96,1.0241067]
[1757321256581,0.19894468,875.61,875.0,1.0241067]
[1757321256880,0.19894468,875.61,875.13,1.0241067]
[1757321257079,0.19894468,875.61,875.12,1.0241067]
[1757321257278,0.19894468,875.61,875.08,1.0241067]
[1757321258175,0.19894468,875.61,875.07,1.0241067]
[1757321258377,0.19894468,875.61,875.09,1.0241067]
[1757321259182,0.19894468,875.61,875.07,1.0241067]
[1757321259380,0.19894468,875.61,875.09,1.0241067]
[1757321260183,0.19894468,875.61,875.08,1.0241067]
[1757321260383,0.19894468,875.61,875.1,1.0241067]
[1757321260980,0.19894468,875.61,875.09,1.0241067]
[1757321261181,0.19894468,875.61,875.08,1.0241067]
[1757321261380,0.19894468,875.61,875.1,1.0241067]
[1757321262183,0.19894468,875.61,875.09,1.0241067]
[1757321262381,0.19894468,875.61,875.11,1.0241067]
[1757321262984,0.19894468,875.61,875.04,1.0241067]
[1757321263281,0.19894468,875.61,875.03,1.0241067]
[1757321263586,0.19894468,875.61,875.04,1.0241067]
[1757321263785,0.19894468,875.61,875.05,1.0241067]
[1757321264285,0.19894468,875.61,875.04,1.0241067]
[1757321265384,0.19894468,875.61,875.01,1.0241067]
[1757321265684,0.19894468,875.61,875.12,1.0241067]
[1757321266487,0.19894468,875.61,875.13,1.0241067]
[1757321267084,0.19894468,875.61,875.12,1.0241067]
[1757321268188,0.19894468,875.61,875.13,1.0241067]
[1757321268489,0.19894468,875.61,875.12,1.0241067]
[1757321269391,0.19894468,875.61,875.11,1.0241067]
[1757321269989,0.19894468,875.61,875.12,1.0241067]
[1757321270187,0.19894468,875.61,875.14,1.0241067]
[1757321272689,0.19894468,875.61,875.03,1.0241067]
[1757321272893,0.19894468,875.61,875.04,1.0241067]
[1757321273788,0.19894468,875.61,875.03,1.0241067]
[1757321277197,0.19894468,875.61,875.04,1.0241067]
[1757321279301,0.19894468,875.61,875.05,1.0241067]
[1757321279597,0.19894468,875.61,874.97,1.0241067]
[1757321279795,0.19894468,875.61,874.98,1.0241067]
[1757321280905,0.19894468,875.61,874.99,1.0241067]
[1757321281103,0.19894468,875.61,875.0,1.0241067]
[1757321281306,0.19894468,875.61,875.01,1.0241067]
[1757321282809,0.19894468,875.61,874.94,1.0241067]
[1757321283211,0.19894468,875.61,874.95,1.0241067]
[1757321283707,0.19894468,875.61,874.96,1.0241067]
[1757321283905,0.19894468,875.61,874.97,1.0241067]
[1757321284211,0.19894468,875.61,874.98,1.0241067]
[1757321284807,0.19894468,875.61,874.97,1.0241067]
[1757321285011,0.19894468,875.61,874.98,1.0241067]
[1757321285308,0.19894468,875.61,874.99,1.0241067]
[1757321285809,0.19894468,875.61,874.98,1.0241067]
[1757321286111,0.19894468,875.61,874.99,1.0241067]
[1757321286411,0.19894468,875.61,875.0,1.0241067]
[1757321287209,0.19894468,875.61,875.02,1.0241067]
[1757321288313,0.19894468,875.61,875.03,1.0241067]
[1757321288510,0.19894468,875.61,875.04,1.0241067]
[1757321288809,0.19894468,875.61,875.03,1.0241067]
[1757321289116,0.19894468,875.61,875.05,1.0241067]
[1757321289416,0.19894468,875.61,875.16,1.0241067]
[1757321289910,0.19894468,875.61,875.19,1.0241067]
[1757321291212,0.19894468,875.61,875.2,1.0241067]
[1757321292112,0.19894468,875.61,875.21,1.0241067]
[1757321292921,0.19894468,875.61,875.28,1.0241067]
[1757321293414,0.19894468,875.61,875.27,1.0241067]
[1757321294016,0.19894468,875.61,875.2,1.0241067]
[1757321294316,0.19894468,875.61,875.15,1.0241067]
[1757321294616,0.19894468,875.61,875.12,1.0241067]
[1757321294820,0.19894468,875.61,875.15,1.0241067]
[1757321295020,0.296,875.56,874.99,1.0241067]
[1757321295219,0.323,875.56,874.99,1.0241067]
[1757321295516,0.323,875.56,875.0,1.0241067]
[1757321296222,0.323,875.56,875.06,1.0241067]
[1757321300619,1.0102722,876.52,874.4,0.82493544]
[1757321300825,1.0102722,875.72,873.85,1.5368064]
[1757321301220,1.0102722,875.78,873.73,1.5368064]
[1757321301519,1.0102722,876.0,873.78,1.5368064]
[1757321301923,1.0102722,876.01,873.78,1.5368064]
[1757321302122,1.0102722,876.03,873.69,1.5368064]
[1757321302419,1.0102722,876.01,873.7,1.5368064]
[1757321302822,1.0102722,875.98,873.67,1.5368064]
[1757321303023,1.0102722,875.96,873.68,1.5368064]
[1757321303322,1.0102722,875.73,873.83,1.5368064]
[1757321303519,1.0102722,875.73,873.77,1.5368064]
[1757321303721,0.19922543,875.4,873.6,1.5368064]
[1757321304121,0.19922543,875.4,873.61,1.5368064]
[1757321304324,0.19922543,875.4,873.54,1.5368064]
[1757321304522,0.19922543,875.4,873.49,1.5368064]
[1757321305027,0.19922543,875.4,873.5,1.5368064]
[1757321305323,0.19922543,875.4,873.42,1.5368064]
[1757321305525,0.19922543,875.4,873.4,1.5368064]
[1757321306225,0.19922543,875.4,873.35,1.5368064]
[1757321307222,0.19922543,875.4,873.31,1.5368064]
[1757321307826,0.19922543,875.4,873.37,1.5368064]
[1757321308024,0.19922543,875.4,873.56,1.5368064]
[1757321308225,0.19922543,875.4,873.62,1.5368064]
[1757321308423,0.19922543,875.4,873.67,1.5368064]
[1757321308623,0.19922543,875.4,873.66,1.5368064]
[1757321308826,0.19922543,875.4,873.65,1.5368064]
[1757321309428,0.19922543,875.4,873.64,1.5368064]
[1757321310226,0.19922543,875.4,873.62,1.5368064]
[1757321311227,0.19922543,875.4,873.6,1.5368064]
[1757321312024,0.19922543,875.4,873.68,1.5368064]
[1757321312230,0.19922543,875.4,873.72,1.5368064]
[1757321312724,0.19922543,875.4,873.68,1.5368064]
[1757321313228,0.19922543,875.4,873.69,1.5368064]
[1757321313428,0.19922543,875.4,872.83,2.5461728]
[1757321313429,0.19922543,875.4,873.73,1.5368064]
[1757321313930,0.19922543,875.4,873.74,1.5368064]
[1757321314129,0.19922543,875.4,873.77,1.5368064]
[1757321314328,0.19922543,875.4,873.76,1.5368064]
[1757321314931,0.19922543,875.4,873.74,1.5368064]
[1757321316233,0.19922543,875.4,873.73,1.5368064]
[1757321316432,0.19922543,875.4,873.62,1.5368064]
[1757321318230,0.19922543,875.4,873.61,1.5368064]
[1757321318435,0.19922543,875.4,873.6,1.5368064]
[1757321318636,0.19922543,875.4,873.61,1.5368064]
[1757321320236,0.19922543,875.4,873.6,1.5368064]
[1757321321236,0.19922543,875.4,873.59,1.5368064]
[1757321322734,0.19922543,875.4,873.67,1.5368064]
[1757321322937,0.19922543,875.4,873.66,1.5368064]
[1757321323238,0.19922543,875.4,873.65,1.5368064]
[1757321324234,0.19922543,875.4,873.73,1.5368064]
[1757321324534,0.19922543,875.4,872.45,0.19923911]
[1757321324535,0.19922543,875.4,873.72,1.5368064]
[1757321324735,0.19922543,875.4,873.73,1.5368064]
[1757321325239,0.19922543,875.4,873.72,1.5368064]
[1757321326740,0.19922543,875.4,873.73,1.5368064]
[1757321326940,0.19922543,875.4,873.78,1.5368064]
[1757321327139,0.19922543,875.4,873.81,1.5368064]
[1757321327940,0.19922543,875.4,872.98,2.5461728]
[1757321327941,0.19922543,875.4,873.8,1.5368064]
[1757321328237,0.19922543,875.4,873.79,1.5368064]
[1757321329136,0.19922543,875.4,872.96,2.5461728]
[1757321329137,0.19922543,875.4,873.68,1.5368064]
[1757321330337,0.19922543,875.4,873.7,1.5368064]
[1757321330741,0.19922543,875.4,873.94,1.0181733]
[1757321331140,0.19922543,875.4,873.95,1.0181733]
[1757321332741,0.19922543,875.4,873.83,1.0181733]
[1757321333142,0.19922543,875.4,873.84,1.0181733]
[1757321334243,0.19922543,875.4,873.85,1.0181733]
[1757321335141,0.19922543,875.4,873.86,1.0181733]
[1757321335945,0.19922543,875.4,873.85,1.0181733]
[1757321336145,0.19922543,875.4,873.86,1.0181733]
[1757321336545,0.19922543,875.4,873.78,1.0181733]
[1757321336741,0.19922543,875.4,873.79,1.0181733]
[1757321337341,0.19922543,875.4,873.8,1.0181733]
[1757321337941,0.19922543,875.4,873.79,1.0181733]
[1757321338245,0.19922543,875.4,873.8,1.0181733]
[1757321339043,0.19922543,875.4,873.82,1.0181733]
[1757321339245,0.19922543,875.4,873.84,1.0181733]
[1757321341142,0.19922543,875.4,873.85,1.0181733]
[1757321341644,0.19922543,875.4,873.86,1.0181733]
[1757321341948,0.19922543,875.4,873.87,1.0181733]
[1757321342148,0.19922543,875.4,873.88,1.0181733]
[1757321342341,0.19922543,875.4,873.89,1.0181733]
[1757321342843,0.19922543,875.4,874.04,1.0181733]
[1757321343243,0.19922543,875.4,874.05,1.0181733]
[1757321344148,0.19922543,875.4,874.06,1.0181733]
[1757321344445,0.19922543,875.4,874.07,1.0181733]
[1757321345150,0.19922543,875.4,874.09,1.0181733]
[1757321345847,0.19922543,875.4,874.1,1.0181733]
[1757321346149,0.19922543,875.4,874.12,1.0181733]
[1757321346453,0.19922543,875.4,872.45,0.19923911]
[1757321346454,0.19922543,875.4,874.23,1.0181733]
[1757321346949,0.19922543,875.4,874.28,1.0181733]
[1757321347155,0.19922543,875.4,874.3,1.0181733]
[1757321347855,0.19922543,875.4,874.34,1.0181733]
[1757321348151,0.19922543,875.4,874.36,1.0181733]
[1757321348354,0.19922543,875.4,874.39,1.0181733]
[1757321349154,0.19922543,875.4,874.41,1.0181733]
[1757321350154,0.19922543,875.4,874.43,1.0181733]
[1757321350354,0.19922543,875.4,874.44,1.0181733]
[1757321350558,0.19922543,875.4,874.32,1.0181733]
[1757321350750,0.19922543,875.4,874.34,1.0181733]
[1757321350955,0.19922543,875.4,874.35,1.0181733]
[1757321351252,0.19922543,875.4,874.38,1.0181733]
[1757321351555,0.19922543,875.4,874.39,1.0181733]
[1757321352156,0.19922543,875.4,874.42,1.0181733]
[1757321352760,0.19922543,875.4,874.35,1.0181733]
[1757321353155,0.19922543,875.4,874.38,1.0181733]
[1757321353956,0.19922543,875.4,874.53,1.0181733]
[1757321354260,0.19922543,875.4,874.57,1.0181733]
[1757321355061,0.19922543,875.4,874.59,1.0181733]
[1757321356357,0.19922543,875.4,874.6,1.0181733]
[1757321357257,0.19922543,875.4,874.62,1.0181733]
[1757321357557,0.19922543,875.4,874.6,1.0181733]
[1757321358163,0.19922543,875.4,874.62,1.0181733]
[1757321358962,0.19922543,875.4,874.66,1.0181733]
[1757321359160,0.19922543,875.4,874.68,1.0181733]
[1757321360161,0.19922543,875.4,874.7,1.0181733]
[1757321361167,0.19922543,875.4,874.72,1.0181733]
[1757321362163,0.19922543,875.4,874.73,1.0181733]
[1757321362363,0.19922543,875.4,874.71,1.0181733]
[1757321362566,0.19922543,875.4,874.72,1.0181733]
[1757321362765,0.19922543,875.4,874.68,1.0181733]
[1757321363168,0.19922543,875.4,874.69,1.0181733]
[1757321363770,0.19922543,875.4,874.74,1.0181733]
[1757321364266,0.19922543,875.4,874.76,1.0181733]
[1757321364471,0.19922543,875.4,874.75,1.0181733]
[1757321364870,0.19922543,875.4,874.74,1.0181733]
[1757321365267,0.19922543,875.4,874.75,1.0181733]
[1757321366168,0.19922543,875.4,874.76,1.0181733]
[1757321366568,0.19922543,875.4,874.77,1.0181733]
[1757321366972,0.19922543,875.4,874.78,1.0181733]
[1757321367168,0.19922543,875.4,874.79,1.0181733]
[1757321367473,0.19922543,875.4,874.8,1.0181733]
[1757321368173,0.19922543,875.4,874.81,1.0181733]
[1757321368373,0.19922543,875.4,874.8,1.0181733]
[1757321368573,0.19922543,875.4,874.81,1.0181733]
[1757321369171,0.19922543,875.4,874.82,1.0181733]
[1757321370175,0.19922543,875.4,874.83,1.0181733]
[1757321370372,0.19922543,875.4,874.82,1.0181733]
[1757321370975,0.19922543,875.4,874.8,1.0181733]
[1757321371871,0.19922543,875.4,874.81,1.0181733]
[1757321372877,0.19922543,875.4,874.78,1.0181733]
[1757321373479,0.19922543,875.4,874.76,1.0181733]
[1757321374076,0.19922543,875.4,874.77,1.0181733]
[1757321374378,0.19922543,875.4,874.8,1.0181733]
[1757321374577,0.19922543,875.4,874.53,1.5368064]
[1757321374578,0.19922543,875.4,874.75,1.0181733]
[1757321374780,0.19922543,875.4,874.82,1.0181733]
[1757321374979,0.19922543,875.4,874.59,1.5368064]
[1757321374980,0.19922543,875.4,874.78,1.0181733]
[1757321375180,0.19922543,875.4,874.79,1.0181733]
[1757321375577,0.19922543,875.4,874.8,1.0181733]
[1757321376380,0.19922543,875.4,874.79,1.0181733]
[1757321376577,0.19922543,875.4,874.76,1.0181733]
[1757321378076,0.19922543,875.4,874.75,1.0181733]
[1757321379580,0.19922543,875.4,874.81,1.0181733]
[1757321380781,0.19922543,875.4,874.79,1.0181733]
[1757321380976,0.19922543,875.4,874.77,1.0181733]
[1757321381177,0.19922543,875.4,874.85,1.0278548]
[1757321381381,0.19922543,875.4,874.65,1.5368064]
[1757321381578,0.19922543,875.4,874.62,1.5368064]
[1757321382079,0.19922543,875.4,874.65,1.5368064]
[1757321382680,0.19922543,875.4,874.68,1.5368064]
[1757321382882,0.19922543,875.4,874.73,1.5368064]
[1757321383082,0.19922543,875.4,874.71,1.5368064]
[1757321383581,0.19922543,875.4,874.72,1.5368064]
[1757321384382,0.19922543,875.4,874.73,1.5368064]
[1757321384780,0.19922543,875.4,874.71,1.5368064]
[1757321385182,0.19922543,875.4,874.72,1.5368064]
[1757321385986,0.19922543,875.4,874.71,1.5368064]
[1757321386588,0.19922543,875.4,874.7,1.5368064]
[1757321386791,0.296,875.31,874.7,1.5368064]
[1757321386992,0.374,875.11,874.7,1.5368064]
[1757321387192,0.374,875.11,874.69,1.5368064]
[1757321388289,0.19922543,875.4,874.69,1.5368064]
[1757321388493,0.499,875.38,874.69,1.5368064]
[1757321389191,0.499,875.38,874.56,1.5368064]
[1757321389391,0.499,875.38,874.55,1.5368064]
[1757321389589,0.499,875.38,874.56,1.5368064]
[1757321392292,0.498,875.38,874.56,1.5368064]
[1757321392493,0.264,875.29,874.58,1.5368064]
[1757321392693,0.264,875.29,874.61,1.5368064]
[1757321392893,0.374,875.38,874.59,1.5368064]
[1757321393390,0.374,875.38,874.6,1.5368064]
[1757321393694,0.4,875.38,874.6,1.5368064]
[1757321393893,0.4,875.38,873.21,3.5646419]
[1757321393894,0.4,875.38,874.58,1.5368064]
[1757321394595,0.19922543,875.4,874.58,1.5368064]
[1757321395990,0.19922543,875.4,874.57,1.5368064]
[1757321397096,0.19922543,875.4,874.58,1.5368064]
[1757321398098,0.19922543,875.4,874.59,1.5368064]
[1757321398298,0.19922543,875.4,874.6,1.5368064]
[1757321399094,0.19922543,875.4,874.63,1.5368064]
[1757321400496,0.19922543,875.4,874.64,1.5368064]
[1757321401200,0.19922543,875.4,874.65,1.5368064]
[1757321402701,0.19922543,875.4,873.77,2.5461728]
[1757321402702,0.19922543,875.4,874.66,1.5368064]
[1757321403598,0.19922543,875.4,873.84,2.5461728]
[1757321403599,0.19922543,875.4,874.7,1.5368064]
[1757321403902,0.19922543,875.4,873.53,3.5646419]
[1757321403903,0.19922543,875.4,874.73,1.5368064]
[1757321404200,0.19922543,875.4,874.71,1.5368064]
[1757321405101,0.19922543,875.4,874.7,1.5368064]
[1757321406403,0.19922543,875.4,873.55,2.5461728]
[1757321406404,0.19922543,875.4,874.69,1.5368064]
[1757321407303,0.19922543,875.4,874.7,1.5368064]
[1757321407604,0.19922543,875.4,874.71,1.5368064]
[1757321408303,0.19922543,875.4,874.7,1.5368064]
[1757321409203,0.19922543,875.4,874.69,1.5368064]
[1757321409403,0.19922543,875.4,874.7,1.5368064]
[1757321410304,0.19922543,875.4,874.69,1.5368064]
[1757321411301,0.19922543,875.4,874.97,1.0277271]
[1757321412101,0.19922543,875.4,874.98,1.0277271]
[1757321412301,0.19922543,875.4,874.99,1.0277271]
[1757321412802,0.19922543,875.4,874.88,1.0277271]
[1757321413107,0.374,875.26,874.86,1.0277271]
[1757321413300,0.374,875.26,874.83,1.0277271]
[1757321413501,0.374,875.26,874.84,1.0277271]
[1757321414206,0.374,875.26,874.85,1.0277271]
[1757321414808,0.19922543,875.4,874.85,1.0277271]
[1757321415708,0.19922543,875.4,874.87,1.0277271]
[1757321419506,0.19922543,875.4,874.88,1.0277271]
[1757321422810,0.19922543,875.4,874.84,1.0277271]
[1757321423210,0.19922543,875.4,874.86,1.0277271]
[1757321426513,0.19922543,875.4,874.87,1.0277271]
[1757321426817,0.19922543,875.4,875.02,1.0277271]
[1757321427013,0.19922543,875.4,875.07,1.0277271]
[1757321427218,0.19922543,875.4,874.99,1.0277271]
[1757321427416,0.19922543,875.4,874.95,1.0277271]
[1757321427616,0.19922543,875.4,873.51,2.5461728]
[1757321427617,0.19922543,875.4,874.9,1.0277271]
[1757321428018,0.19922543,875.4,874.92,1.0277271]
[1757321428218,0.19922543,875.4,874.87,1.0277271]
[1757321429522,0.19922543,875.4,874.84,1.0277271]
[1757321429721,0.19922543,875.4,874.85,1.0277271]
[1757321430221,0.19922543,875.4,874.86,1.0277271]
[1757321431819,0.19922543,875.4,874.91,1.0277271]
[1757321432219,0.19922543,875.4,874.9,1.0277271]
[1757321432625,0.19922543,875.4,873.51,2.5461728]
[1757321432626,0.19922543,875.4,874.91,1.0277271]
[1757321432926,0.19922543,875.4,874.98,1.0277271]
[1757321433720,0.19922543,875.4,871.85,5.0923457]
[1757321433721,0.19922543,875.4,875.02,1.0277271]
[1757321434227,0.19922543,875.4,875.1,1.0277271]
[1757321436723,0.19922543,875.4,875.09,1.0277271]
[1757321437924,0.19922543,875.4,875.12,1.0277271]
[1757321438124,0.19922543,875.4,875.13,1.0277271]
[1757321440129,0.19922543,875.4,875.03,1.5368064]
[1757321440525,0.19922543,875.4,875.0,1.5368064]
[1757321441930,0.19922543,875.4,874.96,1.5368064]
[1757321442131,0.19922543,875.4,874.9,1.5368064]
[1757321442331,0.19922543,875.4,874.95,1.5368064]
[1757321442730,0.19922543,875.4,874.94,1.5368064]
[1757321443229,0.19922543,875.4,874.1,2.5461728]
[1757321443230,0.19922543,875.4,874.93,1.5368064]
[1757321445935,0.19922543,875.4,874.5,1.5368064]
[1757321446635,0.19922543,875.4,874.49,1.5368064]
[1757321446930,0.19922543,875.4,874.5,1.5368064]
[1757321447332,0.19922543,875.4,874.46,1.5368064]
[1757321447536,0.19922543,875.4,874.48,1.5368064]
[1757321447734,0.19922543,875.4,873.2,2.5461728]
[1757321447735,0.19922543,875.4,874.43,1.5368064]
[1757321448433,0.19922543,875.4,874.56,1.5368064]
[1757321448639,0.19922543,875.4,874.57,1.5368064]
[1757321449334,0.19922543,875.4,874.58,1.5368064]
[1757321449633,0.19922543,875.4,874.6,1.5368064]
[1757321450738,0.19922543,875.4,874.57,1.5368064]
[1757321450934,0.19922543,875.4,874.6,1.5368064]
[1757321451135,0.19922543,875.4,874.59,1.5368064]
[1757321451441,0.19922543,875.4,874.61,1.5368064]
[1757321452842,0.19922543,875.4,874.75,1.5368064]
[1757321453338,0.19922543,875.4,874.76,1.5368064]